{"text_format":"1","workbook":"xlsx","n_sheets":6,"sheets":["表紙","自己採点シート","学習自己点検シート ","単位修得状況確認表（共通教育科目）","単位修得状況確認表（専門教育科目）","累積グラフ"],"not_rendered":{"charts":9,"images":2,"macros":1,"external_links":0,"defined_names":5,"comments":0,"pivot_tables":0},"unopened":[],"bounds":{"document_bytes":16777216,"sheet_cells":100000,"rows_first":2000,"rows_last":500,"rows_between":2000,"halvings":0,"cell_chars":16384,"cell_head_chars":4096},"cells_cut":0,"cells_raw":0,"read":"whole","date_system":"1900"}

{"sheet":"表紙","index":0,"n_rows":34,"n_cols":2,"rows_kept":34,"cut":false,"hidden":false,"merged":[]}
[]
[]
[]
[]
[]
[]
[]
[]
[]
[]
[]
[null,"鹿児島大学工学部ポートフォリオ"]
[]
[]
[]
[]
[]
[]
[]
[]
[]
[]
[]
[]
[]
[]
[]
[]
[]
[]
[]
[null,"学科："]
[null,"氏名："]
[null,"学籍番号："]

{"sheet":"自己採点シート","index":1,"n_rows":22,"n_cols":21,"rows_kept":22,"cut":false,"hidden":false,"merged":[[12,2,12,5],[3,10,3,11],[3,19,3,20],[9,2,9,5],[10,2,10,5],[11,2,11,5],[19,2,19,5],[20,2,20,5],[21,2,21,5],[13,2,13,5],[14,2,14,5],[15,2,15,5],[16,2,16,5],[17,2,17,5],[18,2,18,5]]}
[]
[null,"自己採点シート"]
[]
[null,null,null,null,null,null,null,null,null,"学籍番号",null,null,null,null,null,null,null,null,"氏名"]
[]
[null,"■学生のみなさんへ"]
[null,null,"今期受講した科目に関して、以下の項目に対して自己採点をしてください。(１０点満点)"]
[]
[]
[null,null,"項目",null,null,null,"2016年度\n前期","2016年度\n後期","2017年度\n前期","2017年度\n後期","2018年度\n前期","2018年度\n後期","2018年度\n前期","2018年度\n後期","2019年度\n前期","2019年度\n後期","2020年度\n前期","2020年度\n後期","2019年度\n前期","2019年度\n後期","卒業時"]
[null,1,"工学に関しての基礎知識\n（物理・化学・数学・情報など）"]
[null,2,"各工学分野での基礎知識\n（専門科目など）"]
[null,3,"人前での発表能力"]
[null,4,"人と話し合ったり議論する能力"]
[null,5,"チームの一員として取り組める（チームワーク）能力"]
[null,6,"英語、その他外国語による表現力"]
[null,7,"読書、講習会への参加、英会話や情報処理学習など大学以外での学習による自己啓発・生涯学習能力"]
[null,8,"社会性や国際感覚が身についているか。"]
[null,9,"倫理観、責任感が身についているか。"]
[null,10]
[null,11]
[null,12]

{"sheet":"学習自己点検シート ","index":2,"n_rows":68,"n_cols":13,"rows_kept":68,"cut":false,"hidden":false,"merged":[[4,8,4,9],[4,11,4,12],[7,2,7,12]]}
[]
[null,null,null,null,null,null,null,null,null,null,null,"年度","期"]
[null,"学習自己点検シート"]
[]
[null,null,null,null,null,null,null,"学籍番号",null,null,"氏名"]
[]
[null,"■学生のみなさんへ"]
[null,null,"学生生活全般に関して自己点検をお願いしています。今期受講した科目に関して、以下の質問項目に答えてください。面談時、指導教員（アドバイザー）の先生方から回答に対する具体的なアドバイスを受けてください。"]
[]
[]
[null,"■回答項目"]
[]
[null,1,"今期の目標は達成できましたか。"]
[]
[]
[]
[]
[null,2,"講義への取り組みは積極的でしたか。また、積極的に取り組むことができなかった講義は具体的に何ですか。"]
[]
[]
[]
[]
[null,3,"講義毎に勉強方法がつかめていますか。"]
[]
[]
[]
[]
[null,4,"それぞれの講義の理解度は自分の目標に達していますか。理解度が足りないと感じている講義は何ですか。"]
[]
[]
[]
[]
[null,5,"平日（試験勉強以外）１日当たりの勉強時間（平均）はどのくらいですか。勉強時間が足りないと感じている講義は何ですか。"]
[]
[]
[]
[]
[null,6,"アルバイトと勉強は両立できましたか。"]
[]
[]
[]
[]
[null,7,"サークル活動と勉強は両立できましたか。"]
[]
[]
[]
[]
[null,8,"卒業後の進路についてどのように考えていますか。"]
[]
[]
[]
[]
[null,9,"その他、アドバイスが必要なことはありますか。"]
[]
[]
[]
[]
[null,10]
[]
[]
[]
[]
[null,11]
[]
[]
[]
[]
[null,12]

{"sheet":"単位修得状況確認表（共通教育科目）","index":3,"n_rows":27,"n_cols":48,"rows_kept":27,"cut":false,"hidden":false,"merged":[[1,0,1,41],[2,0,5,6],[2,7,2,38],[2,39,5,39],[2,40,5,40],[2,41,5,41],[3,7,3,10],[3,11,3,14],[3,15,3,18],[3,19,3,22],[3,23,3,26],[3,27,3,30],[3,31,3,34],[3,35,3,38],[4,7,4,8],[4,9,4,10],[4,15,4,16],[4,17,4,18],[22,0,22,6],[15,0,21,0],[15,1,18,3],[16,4,18,4],[4,31,4,32],[4,33,4,34],[4,35,4,36],[4,37,4,38],[6,0,14,0],[6,1,11,3],[9,4,10,4],[12,1,13,3],[4,19,4,20],[4,21,4,22],[4,23,4,24],[4,25,4,26],[4,27,4,28],[4,29,4,30],[4,11,4,12],[4,13,4,14],[16,43,19,43],[19,1,20,3],[19,40,20,40],[24,39,24,40],[25,0,25,6],[25,7,25,8],[25,9,25,10],[25,11,25,12],[25,13,25,14],[25,15,25,16],[25,17,25,18],[25,19,25,20],[25,21,25,22],[25,35,25,36],[25,37,25,38],[25,27,25,28],[25,23,25,24],[25,25,25,26],[26,0,26,6],[26,7,26,8],[26,9,26,10],[26,11,26,12],[26,13,26,14],[23,1,23,10],[26,37,26,38],[26,21,26,22],[26,23,26,24],[26,25,26,26],[26,27,26,28],[26,29,26,30],[26,31,26,32],[25,29,25,30],[25,31,25,32],[25,33,25,34],[26,33,26,34],[26,35,26,36],[26,15,26,16],[26,17,26,18],[26,19,26,20]]}
[null,null,null,null,null,null,null,null,null,null,null,null,null,null,null,null,null,null,null,null,null,null,null,null,null,null,null,null,null,null,null,null,null,null,null,null,null,null,null,null,null,null,null,null,null,null,null,"A"]
["単位修得状況確認表（共通教育科目）",null,null,null,null,null,null,null,null,null,null,null,null,null,null,null,null,null,null,null,null,null,null,null,null,null,null,null,null,null,null,null,null,null,null,null,null,null,null,null,null,null,null,null,null,null,null,"B"]
["　",null,null,null,null,null,null,"取得単位数およびGP",null,null,null,null,null,null,null,null,null,null,null,null,null,null,null,null,null,null,null,null,null,null,null,null,null,null,null,null,null,null,null,"取得単位数","要修得\n単位数","累積GP",null,null,null,null,null,"C"]
[null,null,null,null,null,null,null,"　年次",null,null,null,"　年次",null,null,null,"　年次",null,null,null,"　年次",null,null,null,"　年次",null,null,null,"　年次",null,null,null,"　年次",null,null,null,"　年次",null,null,null,null,null,null,null,null,null,null,null,"D"]
[null,null,null,null,null,null,null,"１期",null,"２期",null,"３期",null,"４期",null,"５期",null,"６期",null,"７期",null,"８期",null,"９期",null,"10期",null,"11期",null,"12期",null,"13期",null,"14期",null,"15期",null,"16期",null,null,null,null,null,null,null,null,null,"F"]
[null,null,null,null,null,null,null,"単位","GP","単位","GP","単位","GP","単位","GP","単位","GP","単位","GP","単位","GP","単位","GP","単位","GP","単位","GP","単位","GP","単位","GP","単位","GP","単位","GP","単位","GP","単位","GP",null,null,null,null,null,null,null,null,"P"]
["必修科目","初年次教育科目",null,null,"初年次セミナーⅠ",null,null,null,null,null,null,null,null,null,null,null,null,null,null,null,null,null,null,null,null,null,null,null,null,null,null,null,null,null,null,null,null,null,null,{"$f":"SUM(H7,J7,L7,N7,P7,R7,T7,V7,X7,Z7,AB7,AD7,AF7,AH7,AJ7,AL7)","v":0},2,null,null,"１．オレンジ枠に分野ごとの合計単位数を記入する。"]
[null,null,null,null,"初年次セミナーⅡ",null,null,null,null,null,null,null,null,null,null,null,null,null,null,null,null,null,null,null,null,null,null,null,null,null,null,null,null,null,null,null,null,null,null,0,2,null,null,"２．各科目の単位数を記入し、合計を計算する。"]
[null,null,null,null,"大学と地域",null,null,null,null,null,null,null,null,null,null,null,null,null,null,null,null,null,null,null,null,null,null,null,null,null,null,null,null,null,null,null,null,null,null,0,2,null,null,"３．各科目のGPを記入し、合計を計算する。"]
[null,null,null,null,"体育・健康","理論",null,null,null,null,null,null,null,null,null,null,null,null,null,null,null,null,null,null,null,null,null,null,null,null,null,null,null,null,null,null,null,null,null,0,1]
[null,null,null,null,null,"実習",null,null,null,null,null,null,null,null,null,null,null,null,null,null,null,null,null,null,null,null,null,null,null,null,null,null,null,null,null,null,null,null,null,0,1]
[null,null,null,null,"情報活用",null,null,null,null,null,null,null,null,null,null,null,null,null,null,null,null,null,null,null,null,null,null,null,null,null,null,null,null,null,null,null,null,null,null,0,2]
[null,"ｸﾞﾛｰﾊﾞﾙ教育科目",null,null,"英語",null,null,null,null,null,null,null,null,null,null,null,null,null,null,null,null,null,null,null,null,null,null,null,null,null,null,null,null,null,null,null,null,null,null,0,6]
[null,null,null,null,"異文化理解",null,null,null,null,null,null,null,null,null,null,null,null,null,null,null,null,null,null,null,null,null,null,null,null,null,null,null,null,null,null,null,null,null,null,0,2]
[null,"必修科目　計",null,null,null,null,null,null,null,null,null,null,null,null,null,null,null,null,null,null,null,null,null,null,null,null,null,null,null,null,null,null,null,null,null,null,null,null,null,0,18,{"$f":"SUM(I15,K15,M15,O15,Q15,S15,U15,W15,Y15,AA15,AC15,AE15,AG15,AI15,AK15,AM15)","v":0}]
["選択必修科目","教養教育科目",null,null,"人文・社会科学分野","選択科目",null,null,null,null,null,null,null,null,null,null,null,null,null,null,null,null,null,null,null,null,null,null,null,null,null,null,null,null,null,null,null,null,null,0,4]
[null,null,null,null,"自然科学分野","実験科目",null,null,null,null,null,null,null,null,null,null,null,null,null,null,null,null,null,null,null,null,null,null,null,null,null,null,null,null,null,null,null,null,null,0,2]
[null,null,null,null,null,"選択科目",null,null,null,null,null,null,null,null,null,null,null,null,null,null,null,null,null,null,null,null,null,null,null,null,null,null,null,null,null,null,null,null,null,0,2]
[null,null,null,null,null,"基礎教育入門科目",null,null,null,null,null,null,null,null,null,null,null,null,null,null,null,null,null,null,null,null,null,null,null,null,null,null,null,null,null,null,null,null,null,0,2]
[null,"教養活用科目",null,null,"統合Ⅰ（課題発見）",null,null,null,null,null,null,null,null,null,null,null,null,null,null,null,null,null,null,null,null,null,null,null,null,null,null,null,null,null,null,null,null,null,null,0,4]
[null,null,null,null,"統合Ⅱ（課題解決）",null,null,null,null,null,null,null,null,null,null,null,null,null,null,null,null,null,null,null,null,null,null,null,null,null,null,null,null,null,null,null,null,null,null,0]
[null,"選択必修科目　計",null,null,null,null,null,null,null,null,null,null,null,null,null,null,null,null,null,null,null,null,null,null,null,null,null,null,null,null,null,null,null,null,null,null,null,null,null,0,14,{"$f":"SUM(I22,K22,M22,O22,Q22,S22,U22,W22,Y22,AA22,AC22,AE22,AG22,AI22,AK22,AM22)","v":0}]
["合計",null,null,null,null,null,null,null,null,null,null,null,null,null,null,null,null,null,null,null,null,null,null,null,null,null,null,null,null,null,null,null,null,null,null,null,null,null,null,0,32,{"$f":"SUM(I23,K23,M23,O23,Q23,S23,U23,W23,Y23,AA23,AC23,AE23,AG23,AI23,AK23,AM23)","v":0}]
["※","「期を増やす」欄により学年を４年間増やすことが可。"]
[]
["【共通教育科目】評価Pの単位数",null,null,null,null,null,null,null,null,null,null,null,null,null,null,null,null,null,null,null,null,null,null,null,null,null,null,null,null,null,null,null,null,null,null,null,null,null,null,{"$f":"SUM(H26:AM26)","v":0}]
["【共通教育科目】不合格（評価F）の単位数",null,null,null,null,null,null,null,null,null,null,null,null,null,null,null,null,null,null,null,null,null,null,null,null,null,null,null,null,null,null,null,null,null,null,null,null,null,null,{"$f":"SUM(H27:AM27)","v":0}]

{"sheet":"単位修得状況確認表（専門教育科目）","index":4,"n_rows":84,"n_cols":48,"rows_kept":84,"cut":false,"hidden":false,"merged":[[17,47,18,47],[82,6,82,7],[82,8,82,9],[82,10,82,11],[82,12,82,13],[82,14,82,15],[6,43,32,43],[35,43,43,43],[46,43,58,43],[61,43,75,43],[82,32,82,33],[82,34,82,35],[80,1,80,10],[46,1,58,1],[61,1,75,1],[1,0,1,38],[2,36,5,36],[3,4,3,7],[3,8,3,11],[3,12,3,15],[4,6,4,7],[4,8,4,9],[4,10,4,11],[2,38,5,38],[3,16,3,19],[4,22,4,23],[2,37,5,37],[4,18,4,19],[3,20,3,23],[4,32,4,33],[2,4,2,35],[4,34,4,35],[4,28,4,29],[4,30,4,31],[3,28,3,31],[3,32,3,35],[4,20,4,21],[3,24,3,27],[4,24,4,25],[4,26,4,27],[4,12,4,13],[4,14,4,15],[4,16,4,17],[4,4,4,5],[35,1,43,1],[2,0,5,1],[6,0,11,0],[6,1,11,1],[12,0,12,3],[14,1,32,1],[14,0,32,0],[35,0,43,0],[61,0,75,0],[82,0,82,3],[82,16,82,17],[8,40,10,40],[33,0,33,3],[12,40,15,40],[16,40,19,40],[76,0,76,3],[80,36,80,37],[82,18,82,19],[78,0,78,3],[79,0,79,3],[82,4,82,5],[44,0,44,3],[46,0,58,0],[59,0,59,3],[83,18,83,19],[83,0,83,3],[83,4,83,5],[83,6,83,7],[83,8,83,9],[83,10,83,11],[83,12,83,13],[83,14,83,15],[83,16,83,17],[83,30,83,31],[83,32,83,33],[83,34,83,35],[82,20,82,21],[82,22,82,23],[82,24,82,25],[82,26,82,27],[82,28,82,29],[82,30,82,31],[83,20,83,21],[83,22,83,23],[83,24,83,25],[83,26,83,27],[83,28,83,29]]}
[null,null,null,null,null,null,null,null,null,null,null,null,null,null,null,null,null,null,null,null,null,null,null,null,null,null,null,null,null,null,null,null,null,null,null,null,null,null,null,null,null,null,null,null,"A"]
["単位修得状況確認表（専門教育科目）",null,null,null,null,null,null,null,null,null,null,null,null,null,null,null,null,null,null,null,null,null,null,null,null,null,null,null,null,null,null,null,null,null,null,null,null,null,null,null,"１．黄色枠に各科目の評価を記入する。",null,null,null,"B"]
["区分",null,"授","単","履修科目の評価およびGP",null,null,null,null,null,null,null,null,null,null,null,null,null,null,null,null,null,null,null,null,null,null,null,null,null,null,null,null,null,null,null,"取得単位数","要修得\n単位数","累積GP",null,"２．オレンジ枠に合計単位数を記入する。",null,null,null,"C"]
[null,null,"業"," ","　年次",null,null,null,"　年次",null,null,null,"　年次",null,null,null,"　年次",null,null,null,"　年次",null,null,null,"　年次",null,null,null,"　年次",null,null,null,"　年次",null,null,null,null,null,null,null,"３．各科目のGPを記入し、合計を計算する。",null,null,null,"D"]
[null,null,"科",null,"１期",null,"２期",null,"３期",null,"４期",null,"５期",null,"６期",null,"７期",null,"８期",null,"９期",null,"10期",null,"11期",null,"12期",null,"13期",null,"14期",null,"15期",null,"16期",null,null,null,null,null,"４．取得単位数を要取得単位数と比較する。",null,null,null,"F"]
[null,null,"目","位","評価","GP","評価","GP","評価","GP","評価","GP","評価","GP","評価","GP","評価","GP","評価","GP","評価","GP","評価","GP","評価","GP","評価","GP","評価","GP","評価","GP","評価","GP","評価","GP",null,null,null,null,null,null,null,null,"P"]
["基礎教育科目","必\n修\n科\n目","線形代数学Ⅰ",2,null,null,null,null,null,null,null,null,null,null,null,null,null,null,null,null,null,null,null,null,null,null,null,null,null,null,null,null,null,null,null,null,null,null,null,null,null,null,null,"必\n修\n科\n目",250152511101,{"$f":"C7","v":"線形代数学Ⅰ"}]
[null,null,"微分積分学A I",2,null,null,null,null,null,null,null,null,null,null,null,null,null,null,null,null,null,null,null,null,null,null,null,null,null,null,null,null,null,null,null,null,null,null,null,null,null,null,null,null,250093000002,"微分積分学A I"]
[null,null,"物理学基礎A I",2,null,null,null,null,null,null,null,null,null,null,null,null,null,null,null,null,null,null,null,null,null,null,null,null,null,null,null,null,null,null,null,null,null,null,null,null,"※ 期をまたがって開講される科目は、成績の\n　出された期に記入する。例えば通年の場合\n　後期に記入する。",null,null,null,250093000001,"物理学基礎A I"]
[null,null,"微分積分学AⅡ",2,null,null,null,null,null,null,null,null,null,null,null,null,null,null,null,null,null,null,null,null,null,null,null,null,null,null,null,null,null,null,null,null,null,null,null,null,null,null,null,null,250093000003,"微分積分学AⅡ"]
[null,null,"線形代数学Ⅱ",2,null,null,null,null,null,null,null,null,null,null,null,null,null,null,null,null,null,null,null,null,null,null,null,null,null,null,null,null,null,null,null,null,null,null,null,null,null,null,null,null,250093000020,"線形代数学Ⅱ","「Ⅰ」が異なるためヒットせず","有機化学Ⅰ（化） 250093000020"]
[null,null,"物理学基礎AⅡ",2,null,null,null,null,null,null,null,null,null,null,null,null,null,null,null,null,null,null,null,null,null,null,null,null,null,null,null,null,null,null,null,null,null,null,null,null,null,null,null,null,250093000004,"物理学基礎AⅡ"]
["合計",null,null,null,null,null,null,null,null,null,null,null,null,null,null,null,null,null,null,null,null,null,null,null,null,null,null,null,null,null,null,null,null,null,null,null,{"$f":"SUM(E13,G13,I13,K13,M13,O13,Q13,S13,U13,W13,Y13,AA13,AC13,AE13,AG13,AI13)","v":0},12,{"$f":"SUM(F13,H13,J13,L13,N13,P13,R13,T13,V13,X13,Z13,AB13,AD13,AF13,AH13,AJ13)","v":0},null,"※ 随意科目については、GPおよびGPAの計算に\n　含めない。また、進級・卒業要件には含まれない。",null,null,null,250093000006,0]
[]
["専門科目","必\n修\n科\n目","フレッシュマンセミナー",2,null,null,null,null,null,null,null,null,null,null,null,null,null,null,null,null,null,null,null,null,null,null,null,null,null,null,null,null,null,null,null,null,null,null,null,null,null,null,null,null,250093000007,{"$f":"C15","v":"フレッシュマンセミナー"},"「Ⅰ」が異なるためヒットせず","応用数学Ⅰ（化） 250093000007"]
[null,null,"有機化学基礎",2,null,null,null,null,null,null,null,null,null,null,null,null,null,null,null,null,null,null,null,null,null,null,null,null,null,null,null,null,null,null,null,null,null,null,null,null,null,null,null,null,250093000005,"有機化学基礎"]
[null,null,"無機化学基礎",2,null,null,null,null,null,null,null,null,null,null,null,null,null,null,null,null,null,null,null,null,null,null,null,null,null,null,null,null,null,null,null,null,null,null,null,null,"※ 評価Pの科目については、GPおよびGPAの計算に含まない。しかしながら、進級・卒業要件の累積単位数には含まれることがある（インターンシップ等）。",null,null,null,250093000008,"無機化学基礎"]
[null,null,"物理化学基礎",2,null,null,null,null,null,null,null,null,null,null,null,null,null,null,null,null,null,null,null,null,null,null,null,null,null,null,null,null,null,null,null,null,null,null,null,null,null,null,null,null,250072400001,"物理化学基礎","2件以上ヒット","化学情報分析実習 250072400001\n化学情報分析実習 250093000009"]
[null,null,"応用数学Ｉ",2,null,null,null,null,null,null,null,null,null,null,null,null,null,null,null,null,null,null,null,null,null,null,null,null,null,null,null,null,null,null,null,null,null,null,null,null,null,null,null,null,250093000010,"応用数学Ｉ"]
[null,null,"物理化学Ⅰ",2,null,null,null,null,null,null,null,null,null,null,null,null,null,null,null,null,null,null,null,null,null,null,null,null,null,null,null,null,null,null,null,null,null,null,null,null,null,null,null,null,251330000001,"物理化学Ⅰ"]
[null,null,"化学工学基礎",2,null,null,null,null,null,null,null,null,null,null,null,null,null,null,null,null,null,null,null,null,null,null,null,null,null,null,null,null,null,null,null,null,null,null,null,null,null,null,null,null,250093000011,"化学工学基礎"]
[null,null,"有機化学Ｉ",2]
[null,null,"物理化学Ⅱ",2]
[null,null,"化学生命工学実験",3]
[null,null,"工学英語Ⅰ",2]
[null,null,"化学情報分析実習",3]
[null,null,"化学生命工学セミナーⅠ",2]
[null,null,"工学英語Ⅱ",2]
[null,null,"化学生命工学セミナーⅡ",2]
[null,null,"化学生命工学特別研究Ⅰ",2]
[null,null,"工学倫理",2]
[null,null,"化学生命工学特別研究Ⅱ",2]
[null,null,"卒　　　業　　　論　　　文注２",6]
["合計",null,null,null,null,null,null,null,null,null,null,null,null,null,null,null,null,null,null,null,null,null,null,null,null,null,null,null,null,null,null,null,null,null,null,null,{"$f":"SUM(E34,G34,I34,K34,M34,O34,Q34,S34,U34,W34,Y34,AA34,AC34,AE34,AG34,AI34)","v":0},44,{"$f":"SUM(F34,H34,J34,L34,N34,P34,R34,T34,V34,X34,Z34,AB34,AD34,AF34,AH34,AJ34)","v":0}]
[]
["専門科目","選\n択\n科\n目\nＡ\n群\n","情報システム",2,null,null,null,null,null,null,null,null,null,null,null,null,null,null,null,null,null,null,null,null,null,null,null,null,null,null,null,null,null,null,null,null,null,null,null,null,null,null,null,"選\n択\n科\n目\nＡ\n群\n",250093000015,{"$f":"C36","v":"情報システム"}]
[null,null,"地球科学基礎",2,null,null,null,null,null,null,null,null,null,null,null,null,null,null,null,null,null,null,null,null,null,null,null,null,null,null,null,null,null,null,null,null,null,null,null,null,null,null,null,null,250299110001,"地球科学基礎"]
[null,null,"原子力・放射線と環境",2,null,null,null,null,null,null,null,null,null,null,null,null,null,null,null,null,null,null,null,null,null,null,null,null,null,null,null,null,null,null,null,null,null,null,null,null,null,null,null,null,250042099101,"原子力・放射線と環境"]
[null,null,"生産工学論",2,null,null,null,null,null,null,null,null,null,null,null,null,null,null,null,null,null,null,null,null,null,null,null,null,null,null,null,null,null,null,null,null,null,null,null,null,null,null,null,null,250299200001,"生産工学論"]
[null,null,"エレクトロニクス論",2,null,null,null,null,null,null,null,null,null,null,null,null,null,null,null,null,null,null,null,null,null,null,null,null,null,null,null,null,null,null,null,null,null,null,null,null,null,null,null,null,250228100002,"エレクトロニクス論"]
[null,null,"科学技術論",2,null,null,null,null,null,null,null,null,null,null,null,null,null,null,null,null,null,null,null,null,null,null,null,null,null,null,null,null,null,null,null,null,null,null,null,null,null,null,null,null,250228100006,"科学技術論"]
[null,null,"環境工学論",2,null,null,null,null,null,null,null,null,null,null,null,null,null,null,null,null,null,null,null,null,null,null,null,null,null,null,null,null,null,null,null,null,null,null,null,null,null,null,null,null,250228100004,"環境工学論"]
[null,null,"材料科学論",2,null,null,null,null,null,null,null,null,null,null,null,null,null,null,null,null,null,null,null,null,null,null,null,null,null,null,null,null,null,null,null,null,null,null,null,null,null,null,null,null,250228100005,"材料科学論"]
[null,null,"エネルギー工学論",2,null,null,null,null,null,null,null,null,null,null,null,null,null,null,null,null,null,null,null,null,null,null,null,null,null,null,null,null,null,null,null,null,null,null,null,null,null,null,null,null,250228100003,"エネルギー工学論"]
["合計",null,null,null,null,null,null,null,null,null,null,null,null,null,null,null,null,null,null,null,null,null,null,null,null,null,null,null,null,null,null,null,null,null,null,null,{"$f":"SUM(E45,G45,I45,K45,M45,O45,Q45,S45,U45,W45,Y45,AA45,AC45,AE45,AG45,AI45)","v":0},6,{"$f":"SUM(F45,H45,J45,L45,N45,P45,R45,T45,V45,X45,Z45,AB45,AD45,AF45,AH45,AJ45)","v":0}]
[]
["専門科目","選\n択\n科\n目\nB\n群","生物学概論",2,null,null,null,null,null,null,null,null,null,null,null,null,null,null,null,null,null,null,null,null,null,null,null,null,null,null,null,null,null,null,null,null,null,null,null,null,null,null,null,"選\n択\n科\n目\nＢ\n群",251330000003,{"$f":"C47","v":"生物学概論"}]
[null,null,"量子化学",2,null,null,null,null,null,null,null,null,null,null,null,null,null,null,null,null,null,null,null,null,null,null,null,null,null,null,null,null,null,null,null,null,null,null,null,null,null,null,null,null,250227000002,{"$f":"C48","v":"量子化学"}]
[null,null,"生物化学Ⅰ",2,null,null,null,null,null,null,null,null,null,null,null,null,null,null,null,null,null,null,null,null,null,null,null,null,null,null,null,null,null,null,null,null,null,null,null,null,null,null,null,null,250093000026,{"$f":"C49","v":"生物化学Ⅰ"}]
[null,null,"高分子化学",2]
[null,null,"化学生命工学英語",2]
[null,null,"生体分子化学",2]
[null,null,"無機化学",2]
[null,null,"有機化学Ⅱ",2,null,null,null,null,null,null,null,null,null,null,null,null,null,null,null,null,null,null,null,null,null,null,null,null,null,null,null,null,null,null,null,null,null,null,null,null,null,null,null,null,251330000004,{"$f":"C54","v":"有機化学Ⅱ"}]
[null,null,"生物化学Ⅱ",2,null,null,null,null,null,null,null,null,null,null,null,null,null,null,null,null,null,null,null,null,null,null,null,null,null,null,null,null,null,null,null,null,null,null,null,null,null,null,null,null,250093000021,"生物化学Ⅱ"]
[null,null,"化学計測Ⅰ",2,null,null,null,null,null,null,null,null,null,null,null,null,null,null,null,null,null,null,null,null,null,null,null,null,null,null,null,null,null,null,null,null,null,null,null,null,null,null,null,null,250093000022,"化学計測Ⅰ"]
[null,null,"化学生命プログラミング",2,null,null,null,null,null,null,null,null,null,null,null,null,null,null,null,null,null,null,null,null,null,null,null,null,null,null,null,null,null,null,null,null,null,null,null,null,null,null,null,null,250093000024,"化学生命プログラミング"]
[null,null,"有機化学Ⅲ",2,null,null,null,null,null,null,null,null,null,null,null,null,null,null,null,null,null,null,null,null,null,null,null,null,null,null,null,null,null,null,null,null,null,null,null,null,null,null,null,null,250093000027,"有機化学Ⅲ"]
[null,null,"分析化学",2,null,null,null,null,null,null,null,null,null,null,null,null,null,null,null,null,null,null,null,null,null,null,null,null,null,null,null,null,null,null,null,null,null,null,null,null,null,null,null,null,250093000028,"分析化学"]
["合計",null,null,null,null,null,null,null,null,null,null,null,null,null,null,null,null,null,null,null,null,null,null,null,null,null,null,null,null,null,null,null,null,null,null,null,{"$f":"SUM(E60,G60,I60,K60,M60,O60,Q60,S60,U60,W60,Y60,AA60,AC60,AE60,AG60,AI60)","v":0},18,{"$f":"SUM(F60,H60,J60,L60,N60,P60,R60,T60,V60,X60,Z60,AB60,AD60,AF60,AH60,AJ60)","v":0}]
[]
["専門科目","選\n択\n科\n目\nＣ\n群","化学生命工学キャリアデザイン",2,null,null,null,null,null,null,null,null,null,null,null,null,null,null,null,null,null,null,null,null,null,null,null,null,null,null,null,null,null,null,null,null,null,null,null,null,null,null,null,"選\n択\n科\n目\nＣ\n群",250093000031,{"$f":"C62","v":"化学生命工学キャリアデザイン"}]
[null,null,"有機工業化学",2,null,null,null,null,null,null,null,null,null,null,null,null,null,null,null,null,null,null,null,null,null,null,null,null,null,null,null,null,null,null,null,null,null,null,null,null,null,null,null,null,250227011002,{"$f":"C63","v":"有機工業化学"}]
[null,null,"界面科学",2,null,null,null,null,null,null,null,null,null,null,null,null,null,null,null,null,null,null,null,null,null,null,null,null,null,null,null,null,null,null,null,null,null,null,null,null,null,null,null,null,259752424101,{"$f":"C64","v":"界面科学"}]
[null,null,"量子物理化学",2]
[null,null,"生体分子計測学",2]
[null,null,"分子生物学",2]
[null,null,"化学計測Ⅱ",2]
[null,null,"医工学概論",2]
[null,null,"反応速度論",2]
[null,null,"機能材料化学",2]
[null,null,"環境化学工学",2,null,null,null,null,null,null,null,null,null,null,null,null,null,null,null,null,null,null,null,null,null,null,null,null,null,null,null,null,null,null,null,null,null,null,null,null,null,null,null,null,250093000025,{"$f":"C72","v":"環境化学工学"}]
[null,null,"移動現象基礎",2,null,null,null,null,null,null,null,null,null,null,null,null,null,null,null,null,null,null,null,null,null,null,null,null,null,null,null,null,null,null,null,null,null,null,null,null,null,null,null,null,250227000130,{"$f":"C73","v":"移動現象基礎"}]
[null,null,"微生物学",2,null,null,null,null,null,null,null,null,null,null,null,null,null,null,null,null,null,null,null,null,null,null,null,null,null,null,null,null,null,null,null,null,null,null,null,null,null,null,null,null,250093000039,{"$f":"C74","v":"微生物学"}]
[null,null,"化学生命工学研究基礎 注３",2,null,null,null,null,null,null,null,null,null,null,null,null,null,null,null,null,null,null,null,null,null,null,null,null,null,null,null,null,null,null,null,null,null,null,null,null,null,null,null,null,250224000120,{"$f":"C75","v":"化学生命工学研究基礎 注３"}]
[null,null,"学外実習",1,null,null,null,null,null,null,null,null,null,null,null,null,null,null,null,null,null,null,null,null,null,null,null,null,null,null,null,null,null,null,null,null,null,null,null,null,null,null,null,null,250224011001,{"$f":"C76","v":"学外実習"}]
["合計",null,null,null,null,null,null,null,null,null,null,null,null,null,null,null,null,null,null,null,null,null,null,null,null,null,null,null,null,null,null,null,null,null,null,null,{"$f":"SUM(E77,G77,I77,K77,M77,O77,Q77,S77,U77,W77,Y77,AA77,AC77,AE77,AG77,AI77)","v":0},12,{"$f":"SUM(F77,H77,J77,L77,N77,P77,R77,T77,V77,X77,Z77,AB77,AD77,AF77,AH77,AJ77)","v":0}]
[]
["専門教育科目合計",null,null,null,{"$f":"SUM(E13,E34,E45,E60,E77)","v":0},{"$f":"SUM(F13,F34,F45,F60,F77)","v":0},{"$f":"SUM(G13,G34,G45,G60,G77)","v":0},{"$f":"SUM(H13,H34,H45,H60,H77)","v":0},{"$f":"SUM(I13,I34,I45,I60,I77)","v":0},0,0,0,0,0,0,0,0,0,0,0,0,0,0,0,0,0,0,0,0,0,0,0,0,0,0,0,{"$f":"SUM(E79,G79,I79,K79,M79,O79,Q79,S79,U79,W79,Y79,AA79,AC79,AE79,AG79,AI79)","v":0},92,{"$f":"SUM(F79,H79,J79,L79,N79,P79,R79,T79,V79,X79,Z79,AB79,AD79,AF79,AH79,AJ79)","v":0}]
["修得総単位数",null,null,null,{"$f":"'単位修得状況確認表（共通教育科目）'!H23+'単位修得状況確認表（専門教育科目）'!E79","v":0},{"$f":"'単位修得状況確認表（共通教育科目）'!I23+'単位修得状況確認表（専門教育科目）'!F79","v":0},{"$f":"'単位修得状況確認表（共通教育科目）'!J23+'単位修得状況確認表（専門教育科目）'!G79","v":0},{"$f":"'単位修得状況確認表（共通教育科目）'!K23+'単位修得状況確認表（専門教育科目）'!H79","v":0},{"$f":"'単位修得状況確認表（共通教育科目）'!L23+'単位修得状況確認表（専門教育科目）'!I79","v":0},{"$f":"'単位修得状況確認表（共通教育科目）'!M23+'単位修得状況確認表（専門教育科目）'!J79","v":0},{"$f":"'単位修得状況確認表（共通教育科目）'!N23+'単位修得状況確認表（専門教育科目）'!K79","v":0},{"$f":"'単位修得状況確認表（共通教育科目）'!O23+'単位修得状況確認表（専門教育科目）'!L79","v":0},{"$f":"'単位修得状況確認表（共通教育科目）'!P23+'単位修得状況確認表（専門教育科目）'!M79","v":0},{"$f":"'単位修得状況確認表（共通教育科目）'!Q23+'単位修得状況確認表（専門教育科目）'!N79","v":0},{"$f":"'単位修得状況確認表（共通教育科目）'!R23+'単位修得状況確認表（専門教育科目）'!O79","v":0},{"$f":"'単位修得状況確認表（共通教育科目）'!S23+'単位修得状況確認表（専門教育科目）'!P79","v":0},{"$f":"'単位修得状況確認表（共通教育科目）'!T23+'単位修得状況確認表（専門教育科目）'!Q79","v":0},{"$f":"'単位修得状況確認表（共通教育科目）'!U23+'単位修得状況確認表（専門教育科目）'!R79","v":0},{"$f":"'単位修得状況確認表（共通教育科目）'!V23+'単位修得状況確認表（専門教育科目）'!S79","v":0},{"$f":"'単位修得状況確認表（共通教育科目）'!W23+'単位修得状況確認表（専門教育科目）'!T79","v":0},{"$f":"'単位修得状況確認表（共通教育科目）'!X23+'単位修得状況確認表（専門教育科目）'!U79","v":0},{"$f":"'単位修得状況確認表（共通教育科目）'!Y23+'単位修得状況確認表（専門教育科目）'!V79","v":0},{"$f":"'単位修得状況確認表（共通教育科目）'!Z23+'単位修得状況確認表（専門教育科目）'!W79","v":0},{"$f":"'単位修得状況確認表（共通教育科目）'!AA23+'単位修得状況確認表（専門教育科目）'!X79","v":0},{"$f":"'単位修得状況確認表（共通教育科目）'!AB23+'単位修得状況確認表（専門教育科目）'!Y79","v":0},{"$f":"'単位修得状況確認表（共通教育科目）'!AC23+'単位修得状況確認表（専門教育科目）'!Z79","v":0},{"$f":"'単位修得状況確認表（共通教育科目）'!AD23+'単位修得状況確認表（専門教育科目）'!AA79","v":0},{"$f":"'単位修得状況確認表（共通教育科目）'!AE23+'単位修得状況確認表（専門教育科目）'!AB79","v":0},{"$f":"'単位修得状況確認表（共通教育科目）'!AF23+'単位修得状況確認表（専門教育科目）'!AC79","v":0},{"$f":"'単位修得状況確認表（共通教育科目）'!AG23+'単位修得状況確認表（専門教育科目）'!AD79","v":0},{"$f":"'単位修得状況確認表（共通教育科目）'!AH23+'単位修得状況確認表（専門教育科目）'!AE79","v":0},{"$f":"'単位修得状況確認表（共通教育科目）'!AI23+'単位修得状況確認表（専門教育科目）'!AF79","v":0},{"$f":"'単位修得状況確認表（共通教育科目）'!AJ23+'単位修得状況確認表（専門教育科目）'!AG79","v":0},{"$f":"'単位修得状況確認表（共通教育科目）'!AK23+'単位修得状況確認表（専門教育科目）'!AH79","v":0},{"$f":"'単位修得状況確認表（共通教育科目）'!AL23+'単位修得状況確認表（専門教育科目）'!AI79","v":0},{"$f":"'単位修得状況確認表（共通教育科目）'!AM23+'単位修得状況確認表（専門教育科目）'!AJ79","v":0},{"$f":"SUM(E80,G80,I80,K80,M80,O80,Q80,S80,U80,W80,Y80,AA80,AC80,AE80,AG80,AI80)","v":0},124,{"$f":"SUM(F80,H80,J80,L80,N80,P80,R80,T80,V80,X80,Z80,AB80,AD80,AF80,AH80,AJ80)","v":0}]
["※","「期を増やす」欄により学年を４年間増やすことが可。",null,null,null,null,null,null,null,null,null,null,null,null,null,null,null,null,null,null,null,null,null,null,null,null,null,null,null,null,null,null,null,null,null,null,"累積GPA",null,{"$f":"IF(AK80-AK83>0,AM80/(AK80-AK83-'単位修得状況確認表（共通教育科目）'!AN26+AK84+'単位修得状況確認表（共通教育科目）'!AN27),\"\")","v":""}]
[]
["【専門教育科目】評価Pの単位数",null,null,null,null,null,null,null,null,null,null,null,null,null,null,null,null,null,null,null,null,null,null,null,null,null,null,null,null,null,null,null,null,null,null,null,{"$f":"SUM(E83:AJ83)","v":0}]
["【専門教育科目】不合格（評価F）の単位数",null,null,null,null,null,null,null,null,null,null,null,null,null,null,null,null,null,null,null,null,null,null,null,null,null,null,null,null,null,null,null,null,null,null,null,{"$f":"SUM(E84:AJ84)","v":0}]

{"sheet":"累積グラフ","index":5,"n_rows":206,"n_cols":7,"rows_kept":206,"cut":false,"hidden":false,"merged":[[65,2,65,3],[3,2,3,3],[3,4,3,5],[34,2,34,3],[34,4,34,5]]}
[]
[null,"共通教育科目（必修科目）"]
[]
[null,null,"初年次教育科目",null,"ｸﾞﾛｰﾊﾞﾙ教育科目"]
[null,null,"取得単位数","累積取得単位数","取得単位数","累積取得単位数"]
[null,"1年前期終了時",{"$f":"SUM('単位修得状況確認表（共通教育科目）'!H7:H12)","v":0},{"$f":"SUM(C$6:C6)","v":0},{"$f":"SUM('単位修得状況確認表（共通教育科目）'!H13:H14)","v":0},{"$f":"SUM(E$6:E6)","v":0}]
[null,"1年後期終了時",{"$f":"SUM('単位修得状況確認表（共通教育科目）'!J7:J12)","v":0},{"$f":"SUM(C$6:C7)","v":0},{"$f":"SUM('単位修得状況確認表（共通教育科目）'!J13:J14)","v":0},{"$f":"SUM(E$6:E7)","v":0}]
[null,"2年前期終了時",{"$f":"SUM('単位修得状況確認表（共通教育科目）'!L7:L12)","v":0},{"$f":"SUM(C$6:C8)","v":0},{"$f":"SUM('単位修得状況確認表（共通教育科目）'!L13:L14)","v":0},{"$f":"SUM(E$6:E8)","v":0}]
[null,"2年後期終了時",{"$f":"SUM('単位修得状況確認表（共通教育科目）'!N7:N12)","v":0},{"$f":"SUM(C$6:C9)","v":0},{"$f":"SUM('単位修得状況確認表（共通教育科目）'!N13:N14)","v":0},{"$f":"SUM(E$6:E9)","v":0}]
[null,"３年前期終了時",{"$f":"SUM('単位修得状況確認表（共通教育科目）'!P7:P12)","v":0},{"$f":"SUM(C$6:C10)","v":0},{"$f":"SUM('単位修得状況確認表（共通教育科目）'!P13:P14)","v":0},{"$f":"SUM(E$6:E10)","v":0}]
[null,"３年後期終了時",{"$f":"SUM('単位修得状況確認表（共通教育科目）'!R7:R12)","v":0},{"$f":"SUM(C$6:C11)","v":0},{"$f":"SUM('単位修得状況確認表（共通教育科目）'!R13:R14)","v":0},{"$f":"SUM(E$6:E11)","v":0}]
[null,"4年前期終了時",{"$f":"SUM('単位修得状況確認表（共通教育科目）'!T7:T12)","v":0},{"$f":"SUM(C$6:C12)","v":0},{"$f":"SUM('単位修得状況確認表（共通教育科目）'!T13:T14)","v":0},{"$f":"SUM(E$6:E12)","v":0}]
[null,"4年後期終了時",{"$f":"SUM('単位修得状況確認表（共通教育科目）'!V7:V12)","v":0},{"$f":"SUM(C$6:C13)","v":0},{"$f":"SUM('単位修得状況確認表（共通教育科目）'!V13:V14)","v":0},{"$f":"SUM(E$6:E13)","v":0}]
[]
[]
[]
[]
[]
[]
[]
[]
[]
[]
[]
[]
[]
[]
[]
[]
[]
[]
[]
[null,"共通教育科目（選択必修科目）"]
[]
[null,null,"教養教育科目",null,"教養活用科目"]
[null,null,"取得単位数","累積取得単位数","取得単位数","累積取得単位数"]
[null,"1年前期終了時",{"$f":"SUM('単位修得状況確認表（共通教育科目）'!H16:H19)","v":0},{"$f":"SUM(C$37:C37)","v":0},{"$f":"SUM('単位修得状況確認表（共通教育科目）'!H20:H21)","v":0},{"$f":"SUM(E$37:E37)","v":0}]
[null,"1年後期終了時",{"$f":"SUM('単位修得状況確認表（共通教育科目）'!J16:J19)","v":0},{"$f":"SUM(C$37:C38)","v":0},{"$f":"SUM('単位修得状況確認表（共通教育科目）'!J20:J21)","v":0},{"$f":"SUM(E$37:E38)","v":0}]
[null,"2年前期終了時",{"$f":"SUM('単位修得状況確認表（共通教育科目）'!L16:L19)","v":0},{"$f":"SUM(C$37:C39)","v":0},{"$f":"SUM('単位修得状況確認表（共通教育科目）'!L20:L21)","v":0},{"$f":"SUM(E$37:E39)","v":0}]
[null,"2年後期終了時",{"$f":"SUM('単位修得状況確認表（共通教育科目）'!N16:N19)","v":0},{"$f":"SUM(C$37:C40)","v":0},{"$f":"SUM('単位修得状況確認表（共通教育科目）'!N20:N21)","v":0},{"$f":"SUM(E$37:E40)","v":0}]
[null,"３年前期終了時",{"$f":"SUM('単位修得状況確認表（共通教育科目）'!P16:P19)","v":0},{"$f":"SUM(C$37:C41)","v":0},{"$f":"SUM('単位修得状況確認表（共通教育科目）'!P20:P21)","v":0},{"$f":"SUM(E$37:E41)","v":0}]
[null,"３年後期終了時",{"$f":"SUM('単位修得状況確認表（共通教育科目）'!R16:R19)","v":0},{"$f":"SUM(C$37:C42)","v":0},{"$f":"SUM('単位修得状況確認表（共通教育科目）'!R20:R21)","v":0},{"$f":"SUM(E$37:E42)","v":0}]
[null,"4年前期終了時",{"$f":"SUM('単位修得状況確認表（共通教育科目）'!T16:T19)","v":0},{"$f":"SUM(C$37:C43)","v":0},{"$f":"SUM('単位修得状況確認表（共通教育科目）'!T20:T21)","v":0},{"$f":"SUM(E$37:E43)","v":0}]
[null,"4年後期終了時",{"$f":"SUM('単位修得状況確認表（共通教育科目）'!V16:V19)","v":0},{"$f":"SUM(C$37:C44)","v":0},{"$f":"SUM('単位修得状況確認表（共通教育科目）'!V20:V21)","v":0},{"$f":"SUM(E$37:E44)","v":0}]
[]
[]
[]
[]
[]
[]
[]
[]
[]
[]
[]
[]
[]
[]
[]
[]
[]
[]
[]
[null,"基礎教育科目"]
[]
[null,null,"必修科目"]
[null,null,"取得単位数","累積取得単位数"]
[null,"1年前期終了時",{"$f":"'単位修得状況確認表（専門教育科目）'!E13","v":0},{"$f":"SUM(C$68:C68)","v":0}]
[null,"1年後期終了時",{"$f":"'単位修得状況確認表（専門教育科目）'!G13","v":0},{"$f":"SUM(C$68:C69)","v":0}]
[null,"2年前期終了時",{"$f":"'単位修得状況確認表（専門教育科目）'!I13","v":0},{"$f":"SUM(C$68:C70)","v":0}]
[null,"2年後期終了時",{"$f":"'単位修得状況確認表（専門教育科目）'!K13","v":0},{"$f":"SUM(C$68:C71)","v":0}]
[null,"３年前期終了時",{"$f":"'単位修得状況確認表（専門教育科目）'!M13","v":0},{"$f":"SUM(C$68:C72)","v":0}]
[null,"３年後期終了時",{"$f":"'単位修得状況確認表（専門教育科目）'!O13","v":0},{"$f":"SUM(C$68:C73)","v":0}]
[null,"4年前期終了時",{"$f":"'単位修得状況確認表（専門教育科目）'!Q13","v":0},{"$f":"SUM(C$68:C74)","v":0}]
[null,"4年後期終了時",{"$f":"'単位修得状況確認表（専門教育科目）'!S13","v":0},{"$f":"SUM(C$68:C75)","v":0}]
[]
[]
[]
[]
[]
[]
[]
[null,"必修科目"]
[]
[null,null,"取得単位数","累積取得単位数"]
[null,"1年前期終了時",{"$f":"'単位修得状況確認表（専門教育科目）'!E34","v":0},{"$f":"SUM(C$86:C86)","v":0}]
[null,"1年後期終了時",{"$f":"'単位修得状況確認表（専門教育科目）'!G34","v":0},{"$f":"SUM(C$86:C87)","v":0}]
[null,"2年前期終了時",{"$f":"'単位修得状況確認表（専門教育科目）'!I34","v":0},{"$f":"SUM(C$86:C88)","v":0}]
[null,"2年後期終了時",{"$f":"'単位修得状況確認表（専門教育科目）'!K34","v":0},{"$f":"SUM(C$86:C89)","v":0}]
[null,"３年前期終了時",{"$f":"'単位修得状況確認表（専門教育科目）'!M34","v":0},{"$f":"SUM(C$86:C90)","v":0}]
[null,"３年後期終了時",{"$f":"'単位修得状況確認表（専門教育科目）'!O34","v":0},{"$f":"SUM(C$86:C91)","v":0}]
[null,"4年前期終了時",{"$f":"'単位修得状況確認表（専門教育科目）'!Q34","v":0},{"$f":"SUM(C$86:C92)","v":0}]
[null,"4年後期終了時",{"$f":"'単位修得状況確認表（専門教育科目）'!S34","v":0},{"$f":"SUM(C$86:C93)","v":0}]
[]
[]
[]
[]
[]
[]
[]
[]
[]
[]
[]
[]
[]
[null,"選択科目A群"]
[]
[null,null,"取得単位数","累積取得単位数"]
[null,"1年前期終了時",{"$f":"'単位修得状況確認表（専門教育科目）'!E45","v":0},{"$f":"SUM(C$110:C110)","v":0}]
[null,"1年後期終了時",{"$f":"'単位修得状況確認表（専門教育科目）'!G45","v":0},{"$f":"SUM(C$110:C111)","v":0}]
[null,"2年前期終了時",{"$f":"'単位修得状況確認表（専門教育科目）'!I45","v":0},{"$f":"SUM(C$110:C112)","v":0}]
[null,"2年後期終了時",{"$f":"'単位修得状況確認表（専門教育科目）'!K45","v":0},{"$f":"SUM(C$110:C113)","v":0}]
[null,"３年前期終了時",{"$f":"'単位修得状況確認表（専門教育科目）'!M45","v":0},{"$f":"SUM(C$110:C114)","v":0}]
[null,"３年後期終了時",{"$f":"'単位修得状況確認表（専門教育科目）'!O45","v":0},{"$f":"SUM(C$110:C115)","v":0}]
[null,"4年前期終了時",{"$f":"'単位修得状況確認表（専門教育科目）'!Q45","v":0},{"$f":"SUM(C$110:C116)","v":0}]
[null,"4年後期終了時",{"$f":"'単位修得状況確認表（専門教育科目）'!S45","v":0},{"$f":"SUM(C$110:C117)","v":0}]
[]
[]
[]
[]
[]
[]
[]
[null,"選択科目B群"]
[]
[null,null,"取得単位数","累積取得単位数"]
[null,"1年前期終了時",{"$f":"'単位修得状況確認表（専門教育科目）'!E60","v":0},{"$f":"SUM(C$128:C128)","v":0}]
[null,"1年後期終了時",{"$f":"'単位修得状況確認表（専門教育科目）'!G60","v":0},{"$f":"SUM(C$128:C129)","v":0}]
[null,"2年前期終了時",{"$f":"'単位修得状況確認表（専門教育科目）'!I60","v":0},{"$f":"SUM(C$128:C130)","v":0}]
[null,"2年後期終了時",{"$f":"'単位修得状況確認表（専門教育科目）'!K60","v":0},{"$f":"SUM(C$128:C131)","v":0}]
[null,"３年前期終了時",{"$f":"'単位修得状況確認表（専門教育科目）'!M60","v":0},{"$f":"SUM(C$128:C132)","v":0}]
[null,"３年後期終了時",{"$f":"'単位修得状況確認表（専門教育科目）'!O60","v":0},{"$f":"SUM(C$128:C133)","v":0}]
[null,"4年前期終了時",{"$f":"'単位修得状況確認表（専門教育科目）'!Q60","v":0},{"$f":"SUM(C$128:C134)","v":0}]
[null,"4年後期終了時",{"$f":"'単位修得状況確認表（専門教育科目）'!S60","v":0},{"$f":"SUM(C$128:C135)","v":0}]
[]
[]
[]
[]
[]
[]
[]
[null,"選択科目C群"]
[]
[null,null,"取得単位数","累積取得単位数"]
[null,"1年前期終了時",{"$f":"'単位修得状況確認表（専門教育科目）'!E77","v":0},{"$f":"SUM(C$146:C146)","v":0}]
[null,"1年後期終了時",{"$f":"'単位修得状況確認表（専門教育科目）'!G77","v":0},{"$f":"SUM(C$146:C147)","v":0}]
[null,"2年前期終了時",{"$f":"'単位修得状況確認表（専門教育科目）'!I77","v":0},{"$f":"SUM(C$146:C148)","v":0}]
[null,"2年後期終了時",{"$f":"'単位修得状況確認表（専門教育科目）'!K77","v":0},{"$f":"SUM(C$146:C149)","v":0}]
[null,"３年前期終了時",{"$f":"'単位修得状況確認表（専門教育科目）'!M77","v":0},{"$f":"SUM(C$146:C150)","v":0}]
[null,"３年後期終了時",{"$f":"'単位修得状況確認表（専門教育科目）'!O77","v":0},{"$f":"SUM(C$146:C151)","v":0}]
[null,"4年前期終了時",{"$f":"'単位修得状況確認表（専門教育科目）'!Q77","v":0},{"$f":"SUM(C$146:C152)","v":0}]
[null,"4年後期終了時",{"$f":"'単位修得状況確認表（専門教育科目）'!S77","v":0},{"$f":"SUM(C$146:C153)","v":0}]
[]
[]
[]
[]
[]
[]
[]
[]
[]
[]
[null,"累積単位数"]
[]
[null,null,"取得単位数","累積取得単位数"]
[null,"1年前期終了時",{"$f":"SUM(C6,E6,C37,E37,C68,C86,C110,C128,C146)","v":0},{"$f":"SUM(C$167:C167)","v":0}]
[null,"1年後期終了時",0,{"$f":"SUM(C$167:C168)","v":0}]
[null,"2年前期終了時",0,{"$f":"SUM(C$167:C169)","v":0}]
[null,"2年後期終了時",0,{"$f":"SUM(C$167:C170)","v":0}]
[null,"３年前期終了時",0,{"$f":"SUM(C$167:C171)","v":0}]
[null,"３年後期終了時",0,{"$f":"SUM(C$167:C172)","v":0}]
[null,"4年前期終了時",0,{"$f":"SUM(C$167:C173)","v":0}]
[null,"4年後期終了時",0,{"$f":"SUM(C$167:C174)","v":0}]
[]
[]
[]
[]
[]
[]
[]
[]
[]
[]
[]
[]
[]
[]
[]
[]
[]
[]
[]
[]
[]
[null,"GPA"]
[]
[null,null,"累積GP","累積GPA","GPA累積単位数","累積P","累積F"]
[null,"1年前期終了時",{"$f":"'単位修得状況確認表（共通教育科目）'!I23+'単位修得状況確認表（専門教育科目）'!F79","v":0},{"$f":"IF(E199=0,\"\",C199/E199)","v":""},{"$f":"D167-F199+G199","v":0},{"$f":"'単位修得状況確認表（共通教育科目）'!H26+'単位修得状況確認表（専門教育科目）'!E83","v":0},{"$f":"'単位修得状況確認表（共通教育科目）'!H27+'単位修得状況確認表（専門教育科目）'!E84","v":0}]
[null,"1年後期終了時",{"$f":"C199+'単位修得状況確認表（共通教育科目）'!K23+'単位修得状況確認表（専門教育科目）'!H79","v":0},"",{"$f":"D168-F200+G200","v":0},{"$f":"F199+'単位修得状況確認表（共通教育科目）'!J26+'単位修得状況確認表（専門教育科目）'!G83","v":0},{"$f":"G199+'単位修得状況確認表（共通教育科目）'!J27+'単位修得状況確認表（専門教育科目）'!G84","v":0}]
[null,"2年前期終了時",{"$f":"C200+'単位修得状況確認表（共通教育科目）'!M23+'単位修得状況確認表（専門教育科目）'!J79","v":0},"",{"$f":"D169-F201+G201","v":0},{"$f":"F200+'単位修得状況確認表（共通教育科目）'!L26+'単位修得状況確認表（専門教育科目）'!I83","v":0},{"$f":"G200+'単位修得状況確認表（共通教育科目）'!L27+'単位修得状況確認表（専門教育科目）'!I84","v":0}]
[null,"2年後期終了時",{"$f":"C201+'単位修得状況確認表（共通教育科目）'!O23+'単位修得状況確認表（専門教育科目）'!L79","v":0},"",0,{"$f":"F201+'単位修得状況確認表（共通教育科目）'!N26+'単位修得状況確認表（専門教育科目）'!K83","v":0},{"$f":"G201+'単位修得状況確認表（共通教育科目）'!N27+'単位修得状況確認表（専門教育科目）'!K84","v":0}]
[null,"３年前期終了時",{"$f":"C202+'単位修得状況確認表（共通教育科目）'!Q23+'単位修得状況確認表（専門教育科目）'!N79","v":0},"",0,{"$f":"F202+'単位修得状況確認表（共通教育科目）'!P26+'単位修得状況確認表（専門教育科目）'!M83","v":0},{"$f":"G202+'単位修得状況確認表（共通教育科目）'!P27+'単位修得状況確認表（専門教育科目）'!M84","v":0}]
[null,"３年後期終了時",{"$f":"C203+'単位修得状況確認表（共通教育科目）'!S23+'単位修得状況確認表（専門教育科目）'!P79","v":0},"",0,{"$f":"F203+'単位修得状況確認表（共通教育科目）'!R26+'単位修得状況確認表（専門教育科目）'!O83","v":0},{"$f":"G203+'単位修得状況確認表（共通教育科目）'!R27+'単位修得状況確認表（専門教育科目）'!O84","v":0}]
[null,"4年前期終了時",{"$f":"C204+'単位修得状況確認表（共通教育科目）'!U23+'単位修得状況確認表（専門教育科目）'!R79","v":0},"",0,{"$f":"F204+'単位修得状況確認表（共通教育科目）'!T26+'単位修得状況確認表（専門教育科目）'!Q83","v":0},{"$f":"G204+'単位修得状況確認表（共通教育科目）'!T27+'単位修得状況確認表（専門教育科目）'!Q84","v":0}]
[null,"4年後期終了時",{"$f":"C205+'単位修得状況確認表（共通教育科目）'!W23+'単位修得状況確認表（専門教育科目）'!T79","v":0},"",0,{"$f":"F205+'単位修得状況確認表（共通教育科目）'!V26+'単位修得状況確認表（専門教育科目）'!S83","v":0},{"$f":"G205+'単位修得状況確認表（共通教育科目）'!V27+'単位修得状況確認表（専門教育科目）'!S84","v":0}]